[Event "*** Titled Tuesday Blitz"]
[Site "Chess.com"]
[Date "2019.10.01"]
[Round "8"]
[White "eljanov"]
[Black "Bigfish1995"]
[Result "0-1"]
[WhiteElo "2807"]
[BlackElo "2993"]
[TimeControl "180+2"]
[EndTime "14:59:24 PDT"]
[Termination "Bigfish1995 won on time"]

1. Nf3 {[%clk 0:03:01.9]} 1... d5 {[%clk 0:02:59.9]} 2. g3 {[%clk 0:03:02.6]}
2... c5 {[%clk 0:02:59.1]} 3. Bg2 {[%clk 0:02:59.4]} 3... Nf6 {[%clk 0:02:59.9]}
4. O-O {[%clk 0:03:00]} 4... e6 {[%clk 0:03:00.5]} 5. c4 {[%clk 0:03:00.4]} 5...
d4 {[%clk 0:03:00.4]} 6. e3 {[%clk 0:03:00]} 6... Nc6 {[%clk 0:03:01.4]} 7. exd4
{[%clk 0:03:01.4]} 7... cxd4 {[%clk 0:03:02.5]} 8. d3 {[%clk 0:03:02.7]} 8...
Bd6 {[%clk 0:03:01.6]} 9. Na3 {[%clk 0:03:02.8]} 9... h6 {[%clk 0:03:02]} 10.
Nc2 {[%clk 0:03:02.5]} 10... e5 {[%clk 0:03:02.5]} 11. b4 {[%clk 0:03:00.2]}
11... O-O {[%clk 0:03:03.1]} 12. b5 {[%clk 0:02:46.6]} 12... Ne7 {[%clk
0:03:00.8]} 13. c5 {[%clk 0:02:34.2]} 13... Bxc5 {[%clk 0:02:45.2]} 14. Nxe5
{[%clk 0:02:34.6]} 14... Ned5 {[%clk 0:02:46.7]} 15. Bd2 {[%clk 0:02:31.6]}
15... Re8 {[%clk 0:02:44.1]} 16. Re1 {[%clk 0:02:09.7]} 16... Qc7 {[%clk
0:02:42.6]} 17. f4 {[%clk 0:02:02.6]} 17... a6 {[%clk 0:02:11]} 18. bxa6 {[%clk
0:01:54.3]} 18... Rxa6 {[%clk 0:02:11.8]} 19. a3 {[%clk 0:01:44.4]} 19... Bf5
{[%clk 0:01:41.4]} 20. Qf3 {[%clk 0:01:34]} 20... Rb6 {[%clk 0:01:26.5]} 21. Ba5
{[%clk 0:01:32.5]} 21... h5 {[%clk 0:01:05.8]} 22. Rac1 {[%clk 0:01:22.4]} 22...
Ra8 {[%clk 0:00:54.8]} 23. Bxb6 {[%clk 0:01:21.6]} 23... Qxb6 {[%clk 0:00:56]}
24. Nc4 {[%clk 0:01:19]} 24... Qa6 {[%clk 0:00:50.2]} 25. Re5 {[%clk 0:01:12.2]}
25... Bg4 {[%clk 0:00:48.7]} 26. Qf2 {[%clk 0:01:10]} 26... Rd8 {[%clk
0:00:42.5]} 27. f5 {[%clk 0:01:04.3]} 27... b5 {[%clk 0:00:36.5]} 28. Nd2 {[%clk
0:00:54.6]} 28... Qd6 {[%clk 0:00:37.7]} 29. Rxd5 {[%clk 0:00:34]} 29... Nxd5
{[%clk 0:00:35.4]} 30. h3 {[%clk 0:00:29.6]} 30... Bxa3 {[%clk 0:00:25.2]} 31.
Re1 {[%clk 0:00:17.2]} 31... Bxf5 {[%clk 0:00:24.2]} 32. Qxf5 {[%clk 0:00:15.9]}
32... Ne3 {[%clk 0:00:21]} 33. Nxe3 {[%clk 0:00:14.1]} 33... dxe3 {[%clk
0:00:21.7]} 34. Ne4 {[%clk 0:00:11.3]} 34... Qxd3 {[%clk 0:00:22.2]} 35. Qxh5
{[%clk 0:00:11.8]} 35... Bb4 {[%clk 0:00:22.1]} 36. Re2 {[%clk 0:00:11.2]} 36...
Bd2 {[%clk 0:00:11]} 37. Kh2 {[%clk 0:00:09.9]} 37... b4 {[%clk 0:00:11.8]} 38.
Ng5 {[%clk 0:00:08.5]} 38... Qg6 {[%clk 0:00:12.5]} 39. Qh4 {[%clk 0:00:06.1]}
39... b3 {[%clk 0:00:09.8]} 40. Be4 {[%clk 0:00:05.6]} 40... Qf6 {[%clk
0:00:09.5]} 41. Qh7+ {[%clk 0:00:04.8]} 41... Kf8 {[%clk 0:00:10.1]} 42. Qh5
{[%clk 0:00:06]} 42... Ke7 {[%clk 0:00:07.2]} 43. Bg2 {[%clk 0:00:05.5]} 43...
b2 {[%clk 0:00:07.3]} 44. Ne4 {[%clk 0:00:06.6]} 44... Qb6 {[%clk 0:00:07.3]}
45. Qh4+ {[%clk 0:00:05.2]} 45... f6 {[%clk 0:00:06.9]} 46. Qh7 {[%clk
0:00:02.2]} 46... Kf7 {[%clk 0:00:06.1]} 0-1

[Event "*** Titled Tuesday Blitz"]
[Site "Chess.com"]
[Date "2019.10.01"]
[Round "8"]
[White "LastHeroJr"]
[Black "MathiasWomacka"]
[Result "1/2-1/2"]
[WhiteElo "2534"]
[BlackElo "2308"]
[TimeControl "180+2"]
[EndTime "14:59:48 PDT"]
[Termination "Game drawn by agreement"]

1. e4 {[%clk 0:03:01.9]} 1... c5 {[%clk 0:03:00.5]} 2. Nf3 {[%clk 0:03:03]} 2...
d6 {[%clk 0:03:01.7]} 3. d4 {[%clk 0:03:04.6]} 3... cxd4 {[%clk 0:03:03.6]} 4.
Nxd4 {[%clk 0:03:06.5]} 4... Nf6 {[%clk 0:03:04.7]} 5. Nc3 {[%clk 0:03:08.2]}
5... a6 {[%clk 0:03:06.2]} 6. Bg5 {[%clk 0:03:09.8]} 6... e6 {[%clk 0:03:07.2]}
7. f4 {[%clk 0:03:11.4]} 7... h6 {[%clk 0:03:08.8]} 8. Bh4 {[%clk 0:03:12]} 8...
Qb6 {[%clk 0:03:09.5]} 9. a3 {[%clk 0:03:13.6]} 9... Nbd7 {[%clk 0:03:09.3]} 10.
Bf2 {[%clk 0:03:12.1]} 10... Qc7 {[%clk 0:03:10.2]} 11. Qf3 {[%clk 0:03:13.2]}
11... b5 {[%clk 0:03:11.2]} 12. O-O-O {[%clk 0:03:10]} 12... Bb7 {[%clk
0:03:12.3]} 13. Bd3 {[%clk 0:02:52.5]} 13... Nc5 {[%clk 0:03:13]} 14. Rhe1
{[%clk 0:02:46.9]} 14... Be7 {[%clk 0:03:09.1]} 15. g4 {[%clk 0:02:47.3]} 15...
d5 {[%clk 0:03:01.5]} 16. e5 {[%clk 0:02:47.2]} 16... Nfe4 {[%clk 0:03:01.4]}
17. Bxe4 {[%clk 0:02:29]} 17... dxe4 {[%clk 0:02:59.9]} 18. Qg3 {[%clk 0:02:26]}
18... Rc8 {[%clk 0:02:48.5]} 19. f5 {[%clk 0:02:22]} 19... Qb6 {[%clk 0:02:24]}
20. h4 {[%clk 0:02:08.4]} 20... b4 {[%clk 0:02:23.8]} 21. axb4 {[%clk
0:02:08.8]} 21... Qxb4 {[%clk 0:02:25.7]} 22. g5 {[%clk 0:01:52.9]} 22... hxg5
{[%clk 0:02:24.1]} 23. hxg5 {[%clk 0:01:54.5]} 23... Rb8 {[%clk 0:02:04.6]} 24.
g6 {[%clk 0:01:26.7]} 24... Ba8 {[%clk 0:01:51.1]} 25. gxf7+ {[%clk 0:01:27.7]}
25... Kxf7 {[%clk 0:01:51.5]} 26. b3 {[%clk 0:01:07]} 26... Nd3+ {[%clk
0:01:46.2]} 27. Rxd3 {[%clk 0:01:03.4]} 27... exd3 {[%clk 0:01:48.1]} 28. Qg6+
{[%clk 0:01:03.7]} 28... Kg8 {[%clk 0:01:43.5]} 29. f6 {[%clk 0:00:42.3]} 29...
Rh7 {[%clk 0:01:15.6]} 30. fxe7 {[%clk 0:00:40.8]} 30... Qxe7 {[%clk 0:01:15.8]}
31. Qxe6+ {[%clk 0:00:40.1]} 31... Qxe6 {[%clk 0:01:16.6]} 32. Nxe6 {[%clk
0:00:42]} 32... dxc2 {[%clk 0:01:16]} 33. Nc5 {[%clk 0:00:31.4]} 33... Rh2
{[%clk 0:01:10.4]} 34. Bd4 {[%clk 0:00:32]} 34... Rd8 {[%clk 0:01:01.6]} 35. Bg1
{[%clk 0:00:25]} 35... Rh1 {[%clk 0:01:00.9]} 36. Kxc2 {[%clk 0:00:21.2]} 36...
a5 {[%clk 0:00:52.4]} 37. e6 {[%clk 0:00:19.1]} 37... Bc6 {[%clk 0:00:48.4]} 38.
Ne2 {[%clk 0:00:13.6]} 38... Rd5 {[%clk 0:00:43.5]} 39. Nd3 {[%clk 0:00:06.9]}
39... Bb5 {[%clk 0:00:41.4]} 40. Nef4 {[%clk 0:00:08.2]} 40... Rd8 {[%clk
0:00:35.3]} 41. Kc3 {[%clk 0:00:07.4]} 41... g5 {[%clk 0:00:33.9]} 42. e7 {[%clk
0:00:07]} 42... Rc8+ {[%clk 0:00:33.7]} 43. Kd4 {[%clk 0:00:02.3]} 43... gxf4
{[%clk 0:00:34.6]} 44. Nc5 {[%clk 0:00:03.1]} 44... Kf7 {[%clk 0:00:31.1]} 45.
Nb7 {[%clk 0:00:04.3]} 45... Rxg1 {[%clk 0:00:16.2]} 46. Rxg1 {[%clk 0:00:04.6]}
46... Kxe7 {[%clk 0:00:17]} 47. Nc5 {[%clk 0:00:06.5]} 47... Kd6 {[%clk
0:00:16.8]} 48. Rg6+ {[%clk 0:00:06.8]} 48... Ke7 {[%clk 0:00:17.8]} 49. Ne4
{[%clk 0:00:08]} 49... Rf8 {[%clk 0:00:18.6]} 50. Ke5 {[%clk 0:00:08.7]} 50...
f3 {[%clk 0:00:19.2]} 51. Rg7+ {[%clk 0:00:09.5]} 51... Rf7 {[%clk 0:00:20.6]}
52. Rxf7+ {[%clk 0:00:09.9]} 52... Kxf7 {[%clk 0:00:22.5]} 53. Kf4 {[%clk
0:00:11.8]} 53... f2 {[%clk 0:00:22.8]} 54. Nxf2 {[%clk 0:00:12.8]} 54... Ke6
{[%clk 0:00:24.2]} 55. Ke4 {[%clk 0:00:14]} 55... Kd6 {[%clk 0:00:25.1]} 56. Kd4
{[%clk 0:00:15.5]} 56... Kc6 {[%clk 0:00:25.9]} 57. Ne4 {[%clk 0:00:16.3]} 57...
Bf1 {[%clk 0:00:26.4]} 58. Nc3 {[%clk 0:00:17.2]} 58... Kb6 {[%clk 0:00:27.3]}
59. Nd5+ {[%clk 0:00:17.1]} 59... Kb5 {[%clk 0:00:27.5]} 1/2-1/2

[Event "*** Titled Tuesday Blitz"]
[Site "Chess.com"]
[Date "2019.10.01"]
[Round "8"]
[White "MikeSailer"]
[Black "ferdipy"]
[Result "0-1"]
[WhiteElo "2076"]
[BlackElo "2167"]
[TimeControl "180+2"]
[EndTime "14:59:48 PDT"]
[Termination "ferdipy won by checkmate"]

1. b4 {[%clk 0:03:01.9]} 1... e6 {[%clk 0:02:45.3]} 2. Bb2 {[%clk 0:03:02.2]}
2... Nf6 {[%clk 0:02:43.5]} 3. b5 {[%clk 0:02:59.2]} 3... c5 {[%clk 0:01:58.9]}
4. Nf3 {[%clk 0:02:53.5]} 4... b6 {[%clk 0:01:59.6]} 5. e3 {[%clk 0:02:54.7]}
5... Bb7 {[%clk 0:02:00.9]} 6. Be2 {[%clk 0:02:56.2]} 6... d5 {[%clk 0:02:00.2]}
7. O-O {[%clk 0:02:56.7]} 7... Bd6 {[%clk 0:02:00.4]} 8. c4 {[%clk 0:02:57.7]}
8... Nbd7 {[%clk 0:02:01.4]} 9. a4 {[%clk 0:02:59.1]} 9... Qc7 {[%clk
0:01:56.1]} 10. a5 {[%clk 0:03:00.2]} 10... O-O {[%clk 0:01:56.5]} 11. a6 {[%clk
0:02:59.2]} 11... Bc8 {[%clk 0:01:39.1]} 12. d4 {[%clk 0:02:52.4]} 12... Rd8
{[%clk 0:01:15.1]} 13. Nbd2 {[%clk 0:02:46.1]} 13... cxd4 {[%clk 0:01:03.8]} 14.
exd4 {[%clk 0:02:29]} 14... Nf8 {[%clk 0:00:52.3]} 15. Rc1 {[%clk 0:02:22.3]}
15... Qe7 {[%clk 0:00:51.2]} 16. c5 {[%clk 0:01:43.6]} 16... bxc5 {[%clk
0:00:49]} 17. dxc5 {[%clk 0:01:44.2]} 17... Bxc5 {[%clk 0:00:50.9]} 18. Ne5
{[%clk 0:01:45.6]} 18... Bd7 {[%clk 0:00:49.9]} 19. Ndf3 {[%clk 0:01:24.8]}
19... Rab8 {[%clk 0:00:47.6]} 20. Nd4 {[%clk 0:01:09.6]} 20... Bxd4 {[%clk
0:00:41.3]} 21. Qxd4 {[%clk 0:00:56.4]} 21... Be8 {[%clk 0:00:37]} 22. Rc3
{[%clk 0:00:31.4]} 22... Ne4 {[%clk 0:00:21]} 23. Rf3 {[%clk 0:00:32.6]} 23...
f6 {[%clk 0:00:21.3]} 24. Ba3 {[%clk 0:00:30.3]} 24... Qc7 {[%clk 0:00:19.1]}
25. Ng4 {[%clk 0:00:24.2]} 25... Ng6 {[%clk 0:00:18.7]} 26. Rc1 {[%clk
0:00:21.5]} 26... Qb6 {[%clk 0:00:17.7]} 27. Qxb6 {[%clk 0:00:21.3]} 27... Rxb6
{[%clk 0:00:19.6]} 28. Bd3 {[%clk 0:00:21.1]} 28... Bxb5 {[%clk 0:00:20.8]} 29.
Bxe4 {[%clk 0:00:20.4]} 29... dxe4 {[%clk 0:00:21.4]} 30. Rb3 {[%clk 0:00:21]}
30... Rc6 {[%clk 0:00:22.5]} 31. Rcb1 {[%clk 0:00:13.7]} 31... Bxa6 {[%clk
0:00:22.6]} 32. h3 {[%clk 0:00:13.6]} 32... Bd3 {[%clk 0:00:22.9]} 33. Ne3
{[%clk 0:00:12.7]} 33... Bxb1 {[%clk 0:00:22.5]} 34. Rxb1 {[%clk 0:00:13.8]}
34... h5 {[%clk 0:00:23.7]} 35. Kh2 {[%clk 0:00:14.6]} 35... Ne5 {[%clk
0:00:24.4]} 36. Be7 {[%clk 0:00:14.2]} 36... Re8 {[%clk 0:00:25]} 37. Ba3 {[%clk
0:00:14.2]} 37... Nc4 {[%clk 0:00:26]} 38. Nxc4 {[%clk 0:00:09.3]} 38... Rxc4
{[%clk 0:00:27.9]} 39. Rb7 {[%clk 0:00:09.9]} 39... Ra4 {[%clk 0:00:28.3]} 40.
Bc5 {[%clk 0:00:09.8]} 40... e5 {[%clk 0:00:29]} 41. Bxa7 {[%clk 0:00:10.6]}
41... Rf8 {[%clk 0:00:30.1]} 42. Bc5 {[%clk 0:00:11.3]} 42... Rf7 {[%clk
0:00:31.4]} 43. Rb8+ {[%clk 0:00:12.6]} 43... Kh7 {[%clk 0:00:32.8]} 44. Be3
{[%clk 0:00:13.6]} 44... Kg6 {[%clk 0:00:33.9]} 45. Rh8 {[%clk 0:00:14.3]} 45...
Ra3 {[%clk 0:00:32.5]} 46. g4 {[%clk 0:00:14.9]} 46... hxg4 {[%clk 0:00:32.5]}
47. h4 {[%clk 0:00:14.4]} 47... Rd7 {[%clk 0:00:32.3]} 48. Kg3 {[%clk
0:00:15.2]} 48... f5 {[%clk 0:00:31.3]} 49. h5+ {[%clk 0:00:13.5]} 49... Kf7
{[%clk 0:00:32]} 50. h6 {[%clk 0:00:15]} 50... f4+ {[%clk 0:00:32.6]} 51. Kxg4
{[%clk 0:00:16.4]} 51... fxe3 {[%clk 0:00:31.8]} 52. h7 {[%clk 0:00:18]} 52...
Kg6 {[%clk 0:00:30.7]} 53. Ra8 {[%clk 0:00:16.6]} 53... Rxa8 {[%clk 0:00:30.8]}
54. h8=Q {[%clk 0:00:17.8]} 54... Rxh8 {[%clk 0:00:31.9]} 55. fxe3 {[%clk
0:00:18.7]} 55... Rf7 {[%clk 0:00:32.2]} 56. Kg3 {[%clk 0:00:19.6]} 56... Rh5
{[%clk 0:00:32.3]} 57. Kg4 {[%clk 0:00:20.6]} 57... Rg5+ {[%clk 0:00:33.5]} 58.
Kh4 {[%clk 0:00:22.2]} 58... Rf1 {[%clk 0:00:32.5]} 59. Kh3 {[%clk 0:00:23.2]}
59... Rh1# {[%clk 0:00:34.4]} 0-1

[Event "*** Titled Tuesday Blitz"]
[Site "Chess.com"]
[Date "2019.10.01"]
[Round "8"]
[White "ural58"]
[Black "sergeikim"]
[Result "0-1"]
[WhiteElo "2378"]
[BlackElo "2487"]
[TimeControl "180+2"]
[EndTime "14:59:54 PDT"]
[Termination "sergeikim won by resignation"]

1. Nc3 {[%clk 0:03:01.9]} 1... Nf6 {[%clk 0:03:00.2]} 2. d4 {[%clk 0:03:00.7]}
2... d5 {[%clk 0:02:59.6]} 3. Bf4 {[%clk 0:03:01.6]} 3... Bf5 {[%clk 0:03:00]}
4. f3 {[%clk 0:03:02.3]} 4... e6 {[%clk 0:03:00.5]} 5. g4 {[%clk 0:03:02.5]}
5... Bg6 {[%clk 0:03:01.1]} 6. h4 {[%clk 0:03:03.6]} 6... h6 {[%clk 0:03:01.8]}
7. e3 {[%clk 0:02:57.3]} 7... a6 {[%clk 0:03:01.3]} 8. Nh3 {[%clk 0:02:55.9]}
8... c5 {[%clk 0:03:00.9]} 9. a3 {[%clk 0:02:55]} 9... Nc6 {[%clk 0:02:57.9]}
10. Qd2 {[%clk 0:02:55.5]} 10... cxd4 {[%clk 0:02:55.2]} 11. exd4 {[%clk
0:02:56.3]} 11... Qb6 {[%clk 0:02:55]} 12. O-O-O {[%clk 0:02:57.1]} 12... Qa5
{[%clk 0:02:40.3]} 13. Nb1 {[%clk 0:02:41.4]} 13... Qxd2+ {[%clk 0:02:34.4]} 14.
Rxd2 {[%clk 0:02:41.3]} 14... Rc8 {[%clk 0:02:34.4]} 15. Kd1 {[%clk 0:01:56.5]}
15... Nxd4 {[%clk 0:01:45.7]} 16. Rxd4 {[%clk 0:01:57.1]} 16... Bxc2+ {[%clk
0:01:46]} 17. Kc1 {[%clk 0:01:58.3]} 17... Be4+ {[%clk 0:01:46.5]} 18. Nc3
{[%clk 0:01:57.6]} 18... Bxf3 {[%clk 0:01:46.8]} 19. Rg1 {[%clk 0:01:46.9]}
19... Bxg4 {[%clk 0:01:33.4]} 20. Nf2 {[%clk 0:01:36.4]} 20... Bf5 {[%clk
0:01:33.8]} 21. Nd3 {[%clk 0:01:30]} 21... Ne4 {[%clk 0:01:29.4]} 22. Kd1 {[%clk
0:01:20.3]} 22... Nxc3+ {[%clk 0:01:25.7]} 23. bxc3 {[%clk 0:01:21.3]} 23...
Rxc3 {[%clk 0:01:26]} 24. a4 {[%clk 0:00:59.7]} 24... f6 {[%clk 0:01:21.9]} 25.
Bd2 {[%clk 0:00:56.4]} 25... Ra3 {[%clk 0:01:15.7]} 26. Nb2 {[%clk 0:00:50.3]}
26... Bc5 {[%clk 0:01:11.9]} 27. Rdg4 {[%clk 0:00:32.5]} 27... Bxg4+ {[%clk
0:00:52.4]} 28. Rxg4 {[%clk 0:00:33.2]} 28... g5 {[%clk 0:00:52]} 29. Nd3 {[%clk
0:00:26]} 29... Bd6 {[%clk 0:00:41.1]} 30. Bb4 {[%clk 0:00:26]} 30... Rxa4
{[%clk 0:00:35.4]} 31. Be2 {[%clk 0:00:16.7]} 31... h5 {[%clk 0:00:27.7]} 32.
Rd4 {[%clk 0:00:12.3]} 32... g4 {[%clk 0:00:13.4]} 33. Kd2 {[%clk 0:00:09.8]}
33... e5 {[%clk 0:00:09.7]} 34. Bxd6 {[%clk 0:00:06.1]} 34... Rxd4 {[%clk
0:00:09]} 35. Bc5 {[%clk 0:00:07.3]} 35... Ra4 {[%clk 0:00:07]} 36. Bb6 {[%clk
0:00:06.4]} 36... d4 {[%clk 0:00:06.5]} 37. Nc5 {[%clk 0:00:07.1]} 37... Rb4
{[%clk 0:00:05]} 38. Ba5 {[%clk 0:00:07.2]} 38... Rb2+ {[%clk 0:00:05.4]} 39.
Ke1 {[%clk 0:00:08]} 39... f5 {[%clk 0:00:05.8]} 40. Bc4 {[%clk 0:00:08.6]}
40... Rc2 {[%clk 0:00:03.7]} 41. Nxb7 {[%clk 0:00:06]} 41... Rxc4 {[%clk
0:00:04.4]} 42. Nd6+ {[%clk 0:00:07.2]} 42... Kd7 {[%clk 0:00:05.6]} 43. Nxc4
{[%clk 0:00:09.1]} 43... Ke6 {[%clk 0:00:07.2]} 44. Ke2 {[%clk 0:00:09.2]} 44...
Rc8 {[%clk 0:00:08]} 45. Nd2 {[%clk 0:00:09.6]} 45... Rc5 {[%clk 0:00:08.6]} 46.
Bb6 {[%clk 0:00:10.3]} 46... Rb5 {[%clk 0:00:09.5]} 47. Bd8 {[%clk 0:00:11.4]}
47... e4 {[%clk 0:00:10.4]} 48. Bg5 {[%clk 0:00:11.2]} 48... Kd5 {[%clk
0:00:11.3]} 49. Kd1 {[%clk 0:00:12]} 49... e3 {[%clk 0:00:11.7]} 50. Nf1 {[%clk
0:00:10.7]} 50... Ke4 {[%clk 0:00:12.7]} 51. Ng3+ {[%clk 0:00:12]} 51... Kd3
{[%clk 0:00:13.7]} 52. Kc1 {[%clk 0:00:13]} 52... Rc5+ {[%clk 0:00:14.7]} 53.
Kb2 {[%clk 0:00:13.7]} 53... e2 {[%clk 0:00:15.8]} 54. Nxh5 {[%clk 0:00:10.1]}
54... e1=Q {[%clk 0:00:15.4]} 55. Nf4+ {[%clk 0:00:12]} 55... Ke4 {[%clk
0:00:16.5]} 0-1

[Event "*** Titled Tuesday Blitz"]
[Site "Chess.com"]
[Date "2019.10.01"]
[Round "8"]
[White "imdvb6307"]
[Black "FearNoEvil12"]
[Result "1-0"]
[WhiteElo "2420"]
[BlackElo "2052"]
[TimeControl "180+2"]
[EndTime "15:00:07 PDT"]
[Termination "imdvb6307 won by resignation"]

1. c4 {[%clk 0:03:01.9]} 1... Nf6 {[%clk 0:02:58.5]} 2. Nc3 {[%clk 0:03:01.4]}
2... g6 {[%clk 0:02:59.9]} 3. Nf3 {[%clk 0:03:01.3]} 3... Bg7 {[%clk 0:03:01.4]}
4. d4 {[%clk 0:03:01.8]} 4... d6 {[%clk 0:03:01.7]} 5. e4 {[%clk 0:03:02.7]}
5... O-O {[%clk 0:03:03.1]} 6. Be2 {[%clk 0:03:03.8]} 6... e5 {[%clk 0:03:03.5]}
7. O-O {[%clk 0:03:05.4]} 7... Nc6 {[%clk 0:03:03.6]} 8. d5 {[%clk 0:03:06.3]}
8... Ne7 {[%clk 0:03:05]} 9. Ne1 {[%clk 0:03:07.6]} 9... Nd7 {[%clk 0:03:02.1]}
10. f3 {[%clk 0:03:08.6]} 10... f5 {[%clk 0:03:03]} 11. g4 {[%clk 0:03:10.2]}
11... f4 {[%clk 0:03:00.9]} 12. h4 {[%clk 0:03:09.7]} 12... Nf6 {[%clk
0:02:53.4]} 13. Nd3 {[%clk 0:03:08.9]} 13... h5 {[%clk 0:02:51.2]} 14. g5 {[%clk
0:03:09.4]} 14... Ne8 {[%clk 0:02:49.8]} 15. Nf2 {[%clk 0:03:09.7]} 15... c5
{[%clk 0:02:44.2]} 16. dxc6 {[%clk 0:03:09.1]} 16... Nxc6 {[%clk 0:02:43.5]} 17.
Rb1 {[%clk 0:02:24]} 17... Be6 {[%clk 0:02:39.6]} 18. b4 {[%clk 0:02:16.5]}
18... Nd4 {[%clk 0:02:39.5]} 19. Nd5 {[%clk 0:02:17.4]} 19... Rc8 {[%clk
0:02:32.7]} 20. Bb2 {[%clk 0:02:10.5]} 20... Bxd5 {[%clk 0:02:18.5]} 21. cxd5
{[%clk 0:02:07.9]} 21... Nc2 {[%clk 0:02:18.2]} 22. Qd2 {[%clk 0:01:56.7]} 22...
Ne3 {[%clk 0:02:17.4]} 23. Rfc1 {[%clk 0:01:57.5]} 23... Rxc1+ {[%clk
0:02:17.4]} 24. Rxc1 {[%clk 0:01:43.7]} 24... Bf6 {[%clk 0:02:18.8]} 25. Kh2
{[%clk 0:01:28.1]} 25... Bxg5 {[%clk 0:02:19.2]} 26. hxg5 {[%clk 0:01:28.9]}
26... Qxg5 {[%clk 0:02:19.9]} 27. Rg1 {[%clk 0:01:29.5]} 27... Qh4+ {[%clk
0:02:16.2]} 28. Nh3 {[%clk 0:01:30.6]} 28... Kh7 {[%clk 0:02:07]} 29. Qe1 {[%clk
0:01:30.6]} 29... Qe7 {[%clk 0:02:03.4]} 30. Ng5+ {[%clk 0:01:30.9]} 30... Kh6
{[%clk 0:02:02.8]} 31. Qh4 {[%clk 0:01:27.3]} 31... Ng7 {[%clk 0:01:55.2]} 32.
Qh3 {[%clk 0:01:25.5]} 32... Qc7 {[%clk 0:01:35.5]} 33. Rc1 {[%clk 0:01:21.8]}
33... Qb6 {[%clk 0:01:33.2]} 34. a3 {[%clk 0:01:14.5]} 34... Kxg5 {[%clk
0:01:28.4]} 35. Rg1+ {[%clk 0:01:01.2]} 35... Kh6 {[%clk 0:01:27.7]} 36. Qd7
{[%clk 0:00:58.4]} 36... Qd8 {[%clk 0:01:22.1]} 37. Qxd8 {[%clk 0:00:53.6]}
37... Rxd8 {[%clk 0:01:22.3]} 38. Rc1 {[%clk 0:00:55.1]} 38... Ne8 {[%clk
0:01:19.6]} 39. Bb5 {[%clk 0:00:53.1]} 39... Nf6 {[%clk 0:01:13.9]} 40. Rc7
{[%clk 0:00:52.4]} 40... a6 {[%clk 0:01:12.6]} 41. Be2 {[%clk 0:00:44.4]} 41...
Rb8 {[%clk 0:01:11.3]} 42. a4 {[%clk 0:00:43.4]} 42... g5 {[%clk 0:01:11.4]} 43.
Bc1 {[%clk 0:00:31.6]} 43... Nc2 {[%clk 0:01:06.8]} 44. Rxc2 {[%clk 0:00:31.1]}
44... g4 {[%clk 0:01:06.7]} 45. Rc7 {[%clk 0:00:29.6]} 45... Kg6 {[%clk
0:00:58.6]} 46. Bd2 {[%clk 0:00:28.1]} 46... b5 {[%clk 0:00:53.2]} 47. a5 {[%clk
0:00:28.2]} 47... Rh8 {[%clk 0:00:50]} 48. Be1 {[%clk 0:00:24]} 48... g3+ {[%clk
0:00:50]} 49. Kh3 {[%clk 0:00:25.1]} 49... Nh7 {[%clk 0:00:47.8]} 50. Bxg3
{[%clk 0:00:19.5]} 50... Ng5+ {[%clk 0:00:47.9]} 51. Kg2 {[%clk 0:00:20.2]}
51... fxg3 {[%clk 0:00:48.1]} 52. Kxg3 {[%clk 0:00:21.6]} 52... h4+ {[%clk
0:00:49.2]} 53. Kh2 {[%clk 0:00:22.7]} 53... h3 {[%clk 0:00:46]} 54. Rc6 {[%clk
0:00:23.4]} 54... Kh5 {[%clk 0:00:45.6]} 55. Rxd6 {[%clk 0:00:24]} 55... Kh4
{[%clk 0:00:45]} 56. Rg6 {[%clk 0:00:22.5]} 56... Kh5 {[%clk 0:00:39.3]} 57.
Rxa6 {[%clk 0:00:22.7]} 57... Kh4 {[%clk 0:00:37.4]} 58. Rg6 {[%clk 0:00:20.3]}
58... Kh5 {[%clk 0:00:37.2]} 59. Rb6 {[%clk 0:00:21.2]} 59... Kh4 {[%clk
0:00:38]} 60. a6 {[%clk 0:00:21.9]} 60... Rh7 {[%clk 0:00:35.6]} 61. Rc6 {[%clk
0:00:16.7]} 61... Nf7 {[%clk 0:00:29.6]} 62. Rf6 {[%clk 0:00:16.8]} 62... Ng5
{[%clk 0:00:28.2]} 63. Bxb5 {[%clk 0:00:15.4]} 63... Nxf3+ {[%clk 0:00:22]} 64.
Rxf3 {[%clk 0:00:15.5]} 64... Rg7 {[%clk 0:00:22.5]} 65. Rxh3+ {[%clk
0:00:16.3]} 1-0